fUST/lending_fUST_20250423
["ID","MTS","AMOUNT","RATE_DAILY","PERIOD"]
[358725489,1745403072388,-500.0,0.00023219,2]
[358725490,1745403072397,-500.0,0.00023219,2]
[358725491,1745403072406,-500.0,0.00023219,2]
[358725492,1745403072415,-500.0,0.00023259,2]
[358725493,1745403072425,-8396.55,0.00023287,2]
[358725494,1745403072435,-182.68854,0.00023319,7]
[358725495,1745403072444,-182.68854,0.00023319,7]
[358725496,1745403072454,-2253.75,0.0002332,2]
[358725497,1745403072463,-517.89,0.0002332,2]
[358725498,1745403072473,-500.0,0.0002332,2]
[358725499,1745403072482,-2458.84,0.0002332,2]
[358725500,1745403072492,-4774.56,0.0002332,2]
[358725501,1745403072501,-5737.28,0.0002332,2]
[358725502,1745403072510,-651.56,0.00023322,2]
[358725503,1745403072520,-266.04340697,0.00023322,2]
[358725504,1745403072530,-566.38,0.00023322,2]
[358725505,1745403072539,-500.0,0.00023322,2]
[358725506,1745403072549,-683.18,0.00023322,2]
[358725507,1745403072559,-500.0,0.00023322,2]
[358725508,1745403072569,-212.240906,0.00023325,7]
[358725509,1745403072578,-151.0,0.00023325,7]
[358725510,1745403072588,-151.0,0.00023325,7]
[358725511,1745403072597,-219.140886,0.00023325,7]
[358725512,1745403072607,-219.140886,0.00023325,7]
[358725513,1745403072616,-198.689744,0.00023325,7]
[358725514,1745403072626,-8316.09559496,0.00023383,4]
[358725515,1745403072636,-500.0,0.00023488,2]
[358725516,1745403072647,-509.72,0.00023489,2]
[358725517,1745403072658,-835.53,0.00023489,2]
[358725518,1745403072667,-2593.26,0.00023489,2]
[358725519,1745403072677,-8207.28,0.00023489,2]
[358725520,1745403072688,-10366.63,0.00023489,2]
[358725521,1745403072699,-4233.86,0.00023489,2]
[358725522,1745403072708,-751.13,0.00023489,2]
[358725523,1745403072719,-500.0,0.00023489,2]
[358725524,1745403072734,-500.0,0.00023489,2]
[358725525,1745403072745,-745.29,0.00023489,2]
[358725526,1745403072755,-565.1,0.00023492,2]
[358725527,1745403072765,-1088.04,0.00023492,2]
[358725528,1745403072775,-1553.74,0.00023492,2]
[358725529,1745403072784,-612.09,0.00023492,2]
[358725530,1745403072932,-562.58,0.00023492,2]
[358725531,1745403072943,-1393.65,0.00023492,2]
[358725532,1745403072953,-500.0,0.00023492,2]
[358725533,1745403072962,-783.91,0.00023492,2]
[358725534,1745403072972,-598.03,0.00023492,2]
[358725535,1745403072983,-537.24,0.00023492,2]
[358725536,1745403072993,-822.07,0.00023492,2]
[358725537,1745403073002,-524.38,0.00023492,2]
[358725538,1745403073011,-500.0,0.00023492,2]
[358725539,1745403073021,-3841.56,0.00023492,2]
[358725540,1745403073031,-500.0,0.00023492,2]
[358725541,1745403073041,-500.0,0.00023493,2]
[358725542,1745403073052,-500.0,0.00023493,2]
[358725543,1745403073062,-656.41,0.00023493,2]
[358725544,1745403073071,-734.03,0.00023493,2]
[358725545,1745403073080,-500.0,0.00023493,2]
[358725546,1745403073090,-682.6,0.00023493,2]
[358725547,1745403073099,-500.0,0.00023493,2]
[358725548,1745403073108,-727.39,0.00023493,2]
[358725549,1745403073118,-686.67,0.00023493,2]
[358725550,1745403073129,-759.45,0.00023493,2]
[358725551,1745403073138,-797.43,0.00023493,2]
[358725552,1745403073147,-593.54,0.00023493,2]
[358725553,1745403073156,-500.0,0.00023493,2]
[358725554,1745403073165,-500.0,0.00023493,2]
[358725555,1745403073174,-512.62090693,0.00023493,2]
[358725556,1745403073183,-326.68670339,0.00023493,2]
[358725557,1745403073192,-624.72,0.00023493,2]
[358725558,1745403073201,-247.68958571,0.00023493,2]
[358725559,1745403073211,-522.73021179,0.00023493,2]
[358725560,1745403073220,-3144.14,0.00023493,2]
[358725561,1745403073229,-500.0,0.00023493,2]
[358725562,1745403073239,-500.0,0.00023493,2]
[358725563,1745403073248,-2273.01,0.00023493,2]
[358725564,1745403073258,-500.0,0.00023493,2]
[358725565,1745403073267,-500.0,0.00023493,2]
[358725566,1745403073276,-151.0,0.00023493,7]
[358725567,1745403073285,-613.49,0.00023493,2]
[358725568,1745403073294,-874.61,0.00023493,2]
[358725569,1745403073303,-500.0,0.00023493,2]
[358725570,1745403073312,-500.0,0.00023493,2]
[358725571,1745403073322,-656.52,0.00023493,2]
[358725572,1745403073331,-500.0,0.00023493,2]
[358725573,1745403073340,-500.0,0.00023493,2]
[358725574,1745403073349,-151.0,0.00023493,7]
[358725575,1745403073358,-526.63,0.00023493,2]
[358725576,1745403073367,-1958.53,0.00023493,2]
[358725577,1745403073377,-628.59,0.00023493,2]
[358725578,1745403073386,-626.92,0.00023493,2]
[358725579,1745403073396,-500.0,0.00023493,2]
[358725580,1745403073405,-500.0,0.00023493,2]
[358725581,1745403073415,-500.0,0.00023493,2]
[358725582,1745403073424,-500.0,0.00023533,2]
[358725583,1745403073434,-8396.55,0.00023561,2]
[358725584,1745403073443,-2253.75,0.00023594,2]
[358725585,1745403073452,-517.89,0.00023594,2]
[358725586,1745403073461,-500.0,0.00023594,2]
[358725587,1745403073471,-2458.84,0.00023594,2]
[358725588,1745403073480,-4774.56,0.00023594,2]
[358725589,1745403073490,-5737.28,0.00023594,2]
[358725590,1745403073499,-651.56,0.00023596,2]
[358725591,1745403073508,-566.38,0.00023596,2]
[358725592,1745403073517,-500.0,0.00023596,2]
[358725593,1745403073527,-683.18,0.00023596,2]
[358725594,1745403073536,-500.0,0.00023596,2]
[358725595,1745403073546,-151.0,0.00023597,7]
[358725596,1745403073555,-587.0,0.00023629,2]
[358725597,1745403073564,-603.20000055,0.00023762,2]
[358725598,1745403073574,-509.72,0.00023763,2]
[358725599,1745403073583,-835.53,0.00023763,2]
[358725600,1745403073592,-2593.26,0.00023763,2]
[358725601,1745403073602,-8207.28,0.00023763,2]
[358725602,1745403073611,-10366.63,0.00023763,2]
[358725603,1745403073621,-4233.86,0.00023763,2]
[358725604,1745403073630,-751.13,0.00023763,2]
[358725605,1745403073640,-500.0,0.00023763,2]
[358725606,1745403073650,-581.32581255,0.00023763,2]
[358725607,1745403073659,-745.29,0.00023763,2]
[358725608,1745403073669,-565.1,0.00023766,2]
[358725609,1745403073678,-1088.04,0.00023766,2]
[358725610,1745403073688,-1553.74,0.00023766,2]
[358725611,1745403073699,-612.09,0.00023766,2]
[358725612,1745403073708,-562.58,0.00023766,2]
[358725613,1745403073718,-1393.65,0.00023766,2]
[358725614,1745403073727,-500.0,0.00023766,2]
[358725615,1745403073739,-783.91,0.00023766,2]
[358725616,1745403073749,-598.03,0.00023766,2]
[358725617,1745403073759,-537.24,0.00023766,2]
[358725618,1745403073769,-822.07,0.00023766,2]
[358725619,1745403073779,-524.38,0.00023766,2]
[358725620,1745403073788,-500.0,0.00023766,2]
[358725621,1745403073797,-3841.56,0.00023766,2]
[358725622,1745403073808,-500.0,0.00023766,2]
[358725623,1745403073817,-2246.0,0.00023766,2]
[358725624,1745403073826,-500.0,0.00023767,2]
[358725625,1745403073836,-500.0,0.00023767,2]
[358725626,1745403073846,-656.41,0.00023767,2]
[358725627,1745403073855,-734.03,0.00023767,2]
[358725628,1745403073865,-493.59762174,0.00023767,2]
[358725629,1745403073874,-682.6,0.00023767,2]
[358725630,1745403073884,-295.33139582,0.00023767,2]
[358725631,1745403073893,-727.39,0.00023767,2]
[358725632,1745403073902,-686.67,0.00023767,2]
[358725633,1745403073912,-759.45,0.00023767,2]
[358725634,1745403073921,-797.43,0.00023767,2]
[358725635,1745403073930,-593.54,0.00023767,2]
[358725636,1745403073939,-500.0,0.00023767,2]
[358725637,1745403073948,-624.72,0.00023767,2]
[358725638,1745403073957,-3144.14,0.00023767,2]
[358725639,1745403073967,-389.23927524,0.00023767,2]
[358725640,1745403073976,-500.0,0.00023767,2]
[358725641,1745403073987,-2273.01,0.00023767,2]
[358725642,1745403073996,-169.87359964,0.00023767,2]
[358725643,1745403074006,-500.0,0.00023767,2]
[358725644,1745403074016,-613.49,0.00023767,2]
[358725645,1745403074025,-874.61,0.00023767,2]
[358725646,1745403074034,-500.0,0.00023767,2]
[358725647,1745403074045,-500.0,0.00023767,2]
[358725648,1745403074057,-656.52,0.00023767,2]
[358725649,1745403074067,-500.0,0.00023767,2]
[358725650,1745403074075,-500.0,0.00023767,2]
[358725651,1745403074085,-526.63,0.00023767,2]
[358725652,1745403074095,-1958.53,0.00023767,2]
[358725653,1745403074105,-628.59,0.00023767,2]
[358725654,1745403074115,-626.92,0.00023767,2]
[358725655,1745403074126,-500.0,0.00023767,2]
[358725656,1745403074136,-500.0,0.00023767,2]
[358725657,1745403074147,-275.13056797,0.00023767,2]
[358725658,1745403074157,-403.0,0.00023776,2]
[358725659,1745403074166,-403.0,0.00023776,2]
[358725660,1745403074176,-500.0,0.00023807,2]
[358725661,1745403074186,-8396.55,0.00023835,2]
[358725662,1745403074195,-2253.75,0.00023868,2]
[358725663,1745403074205,-517.89,0.00023868,2]
[358725664,1745403074214,-500.0,0.00023868,2]
[358725665,1745403074221,-2458.84,0.00023868,2]
[358725666,1745403074230,-4774.56,0.00023868,2]
[358725667,1745403074242,-5737.28,0.00023868,2]
[358725668,1745403074252,-651.56,0.0002387,2]
[358725669,1745403074261,-566.38,0.0002387,2]
[358725670,1745403074270,-500.0,0.0002387,2]
[358725671,1745403074279,-683.18,0.0002387,2]
[358725672,1745403074289,-617.87309789,0.0002387,2]
[358725673,1745403074298,-151.0,0.0002387,7]
[358725674,1745403074307,-151.0,0.0002387,7]
[358725675,1745403074316,-177.902783,0.0002387,7]
[358725676,1745403074325,-481.545953,0.0002387,2]
[358725677,1745403074334,-481.545953,0.0002387,2]
[358725678,1745403074344,-174.868336,0.00023871,7]
[358725679,1745403074353,-174.868336,0.00023871,7]
[358725680,1745403074362,-3455.956356,0.00023871,7]
[358725681,1745403074372,-3455.956356,0.00023871,7]
[358725682,1745403074381,-160.0,0.000239,7]
[358725683,1745403074391,-160.0,0.000239,7]
[358725684,1745403074400,-544.0,0.00023955,2]
[358725685,1745403074409,-706.0,0.00023955,2]
[358725686,1745403074418,-3075.0,0.00024,5]
[358725687,1745403074427,-160.0,0.00024,7]
[358725688,1745403074437,-160.0,0.00024,7]
[358725689,1745403074447,-420.82143104,0.00024,7]
[358725690,1745403074456,-500.0,0.00024005,2]
[358725691,1745403074466,-299.219246,0.00024005,2]
[358725692,1745403074476,-500.0,0.00024005,2]
[358725693,1745403074489,-500.0,0.00024005,2]
[358725694,1745403074498,-500.0,0.00024005,2]
[358725695,1745403074508,-333.39074995,0.00024005,2]
[358725696,1745403074517,-500.0,0.00024005,2]
[358725697,1745403074527,-409.81229782,0.00024025,2]
[358725698,1745403074537,-509.72,0.00024037,2]
[358725699,1745403074547,-835.53,0.00024037,2]
[358725700,1745403074556,-2593.26,0.00024037,2]
[358725701,1745403074566,-8207.28,0.00024037,2]
[358725702,1745403074576,-10366.63,0.00024037,2]
[358725703,1745403074586,-4233.86,0.00024037,2]
[358725704,1745403074595,-751.13,0.00024037,2]
[358725705,1745403074606,-500.0,0.00024037,2]
[358725706,1745403074615,-745.29,0.00024037,2]
[358725707,1745403074625,-565.1,0.0002404,2]
[358725708,1745403074634,-1088.04,0.0002404,2]
[358725709,1745403074643,-1553.74,0.0002404,2]
[358725710,1745403074653,-612.09,0.0002404,2]
[358725711,1745403074662,-562.58,0.0002404,2]
[358725712,1745403074671,-1393.65,0.0002404,2]
[358725713,1745403074680,-500.0,0.0002404,2]
[358725714,1745403074689,-783.91,0.0002404,2]
[358725715,1745403074699,-598.03,0.0002404,2]
[358725716,1745403074708,-537.24,0.0002404,2]
[358725717,1745403074718,-822.07,0.0002404,2]
[358725718,1745403074728,-524.38,0.0002404,2]
[358725719,1745403074740,-500.0,0.0002404,2]
[358725720,1745403074752,-3841.56,0.0002404,2]
[358725721,1745403074761,-500.0,0.0002404,2]
[358725722,1745403074770,-363.33072599,0.00024041,2]
[358725723,1745403074780,-500.0,0.00024041,2]
[358725724,1745403074790,-656.41,0.00024041,2]
[358725725,1745403074799,-734.03,0.00024041,2]
[358725726,1745403074808,-682.6,0.00024041,2]
[358725727,1745403074818,-727.39,0.00024041,2]
[358725728,1745403074827,-686.67,0.00024041,2]
[358725729,1745403074837,-759.45,0.00024041,2]
[358725730,1745403074846,-797.43,0.00024041,2]
[358725731,1745403074855,-593.54,0.00024041,2]
[358725732,1745403074864,-188.28312983,0.00024041,2]
[358725733,1745403074874,-624.72,0.00024041,2]
[358725734,1745403074883,-3144.14,0.00024041,2]
[358725735,1745403074892,-487.25231012,0.00024041,2]
[358725736,1745403074902,-2273.01,0.00024041,2]
[358725737,1745403074911,-500.0,0.00024041,2]
[358725738,1745403074920,-613.49,0.00024041,2]
[358725739,1745403074930,-874.61,0.00024041,2]
[358725740,1745403074939,-500.0,0.00024041,2]
[358725741,1745403074950,-500.0,0.00024041,2]
[358725742,1745403074960,-656.52,0.00024041,2]
[358725743,1745403074969,-500.0,0.00024041,2]
[358725744,1745403074978,-500.0,0.00024041,2]
[358725745,1745403074988,-526.63,0.00024041,2]
[358725746,1745403074998,-1958.53,0.00024041,2]
[358725747,1745403075008,-628.59,0.00024041,2]
[358725748,1745403075017,-626.92,0.00024041,2]
[358725749,1745403075027,-500.0,0.00024041,2]
[358725750,1745403075036,-500.0,0.00024041,2]
[358725751,1745403075049,-500.0,0.00024081,2]
[358725752,1745403075058,-351.0,0.000241,2]
[358725753,1745403075067,-500.0,0.00024102,2]
[358725754,1745403075077,-8396.55,0.00024109,2]
[358725755,1745403075087,-168.0,0.00024109,2]
[358725756,1745403075096,-168.0,0.00024109,2]
[358725757,1745403075105,-168.0,0.00024109,2]
[358725758,1745403075115,-168.0,0.00024109,2]
[358725759,1745403075126,-168.0,0.00024109,2]
[358725760,1745403075135,-168.0,0.00024109,2]
[358725761,1745403075145,-168.0,0.00024109,2]
[358725762,1745403075155,-168.0,0.00024109,2]
[358725763,1745403075164,-168.0,0.00024109,2]
[358725764,1745403075173,-168.0,0.00024109,2]
[358725765,1745403075182,-158.14476126,0.00024109,2]
[358725766,1745403075191,-182.68854,0.00024142,7]
[358725767,1745403075200,-182.68854,0.00024142,7]
[358725768,1745403075209,-2253.75,0.00024142,2]
[358725769,1745403075220,-517.89,0.00024142,2]
[358725770,1745403075229,-500.0,0.00024142,2]
[358725771,1745403075239,-2458.84,0.00024142,2]
[358725772,1745403075249,-4774.56,0.00024142,2]
[358725773,1745403075258,-5737.28,0.00024142,2]
[358725774,1745403075267,-651.56,0.00024144,2]
[358725775,1745403075276,-566.38,0.00024144,2]
[358725776,1745403075285,-500.0,0.00024144,2]
[358725777,1745403075294,-683.18,0.00024144,2]
[358725778,1745403075304,-151.0,0.00024145,7]
[358725779,1745403075313,-175.711484,0.00024145,7]
[358725780,1745403075322,-219.140886,0.00024147,7]
[358725781,1745403075331,-219.140886,0.00024147,7]
[358725782,1745403075477,-8316.09559496,0.0002421,5]
[358725783,1745403075488,-1032.07563749,0.00024256,2]
[358725784,1745403075499,-900.0,0.0002426,2]
[358725785,1745403075509,-509.72,0.00024311,2]
[358725786,1745403075519,-835.53,0.00024311,2]
[358725787,1745403075528,-2593.26,0.00024311,2]
[358725788,1745403075538,-8207.28,0.00024311,2]
[358725789,1745403075548,-10366.63,0.00024311,2]
[358725790,1745403075558,-4233.86,0.00024311,2]
[358725791,1745403075568,-751.13,0.00024311,2]
[358725792,1745403075578,-500.0,0.00024311,2]
[358725793,1745403075588,-745.29,0.00024311,2]
[358725794,1745403075598,-565.1,0.00024314,2]
[358725795,1745403075608,-1088.04,0.00024314,2]
[358725796,1745403075618,-1553.74,0.00024314,2]
[358725797,1745403075628,-612.09,0.00024314,2]
[358725798,1745403075637,-562.58,0.00024314,2]
[358725799,1745403075647,-1393.65,0.00024314,2]
[358725800,1745403075657,-500.0,0.00024314,2]
[358725801,1745403075666,-783.91,0.00024314,2]
[358725802,1745403075676,-598.03,0.00024314,2]
[358725803,1745403075685,-537.24,0.00024314,2]
[358725804,1745403075694,-822.07,0.00024314,2]
[358725805,1745403075704,-524.38,0.00024314,2]
[358725806,1745403075714,-500.0,0.00024314,2]
[358725807,1745403075723,-3841.56,0.00024314,2]
[358725808,1745403075733,-500.0,0.00024314,2]
[358725809,1745403075743,-500.0,0.00024315,2]
[358725810,1745403075752,-656.41,0.00024315,2]
[358725811,1745403075762,-734.03,0.00024315,2]
[358725812,1745403075771,-682.6,0.00024315,2]
[358725813,1745403075781,-727.39,0.00024315,2]
[358725814,1745403075790,-686.67,0.00024315,2]
[358725815,1745403075800,-759.45,0.00024315,2]
[358725816,1745403075809,-797.43,0.00024315,2]
[358725817,1745403075818,-593.54,0.00024315,2]
[358725818,1745403075828,-624.72,0.00024315,2]
[358725819,1745403075837,-3144.14,0.00024315,2]
[358725820,1745403075846,-2273.01,0.00024315,2]
[358725821,1745403075855,-500.0,0.00024315,2]
[358725822,1745403075865,-613.49,0.00024315,2]
[358725823,1745403075874,-874.61,0.00024315,2]
[358725824,1745403075883,-500.0,0.00024315,2]
[358725825,1745403075893,-500.0,0.00024315,2]
[358725826,1745403075903,-656.52,0.00024315,2]
[358725827,1745403075912,-500.0,0.00024315,2]
[358725828,1745403075920,-500.0,0.00024315,2]
[358725829,1745403075928,-151.0,0.00024315,7]
[358725830,1745403075938,-526.63,0.00024315,2]
[358725831,1745403075949,-1958.53,0.00024315,2]
[358725832,1745403075959,-628.59,0.00024315,2]
[358725833,1745403075969,-626.92,0.00024315,2]
[358725834,1745403075979,-500.0,0.00024315,2]
[358725835,1745403075990,-500.0,0.00024315,2]
[358725836,1745403076000,-500.0,0.00024355,2]
[358725837,1745403076009,-8396.55,0.00024383,2]
[358725838,1745403076019,-500.0,0.00024383,2]
[358725839,1745403076028,-500.0,0.00024383,2]
[358725840,1745403076037,-604.67000202,0.00024383,2]
[358725841,1745403076046,-180.09545059,0.00024416,2]
[358725842,1745403076058,-1000.0,0.00024416,2]
[358725843,1745403076067,-151.0,0.00024416,7]
[358725844,1745403076076,-2253.75,0.00024416,2]
[358725845,1745403076085,-517.89,0.00024416,2]
[358725846,1745403076095,-500.0,0.00024416,2]
[358725847,1745403076104,-2458.84,0.00024416,2]
[358725848,1745403076114,-4774.56,0.00024416,2]
[358725849,1745403076123,-5737.28,0.00024416,2]
[358725850,1745403076132,-651.56,0.00024418,2]
[358725851,1745403076140,-566.38,0.00024418,2]
[358725852,1745403076149,-500.0,0.00024418,2]
[358725853,1745403076159,-683.18,0.00024418,2]
[358725854,1745403076168,-151.0,0.00024446,7]
[358725855,1745403076177,-151.0,0.00024446,7]
[358725856,1745403076186,-481.545953,0.00024446,2]
[358725857,1745403076196,-481.545953,0.00024446,2]
[358725858,1745403076204,-174.868336,0.00024481,7]
[358725859,1745403076213,-174.868336,0.00024481,7]
[358725860,1745403076222,-3455.956356,0.00024481,7]
[358725861,1745403076233,-3455.956356,0.00024481,7]
[358725862,1745403076242,-151.0,0.0002449,7]
[358725863,1745403076252,-219.140886,0.000245,7]
[358725864,1745403076261,-219.140886,0.000245,7]
[358725865,1745403076270,-182.68854,0.000245,7]
[358725866,1745403076279,-182.68854,0.000245,7]
[358725867,1745403076288,-514.30411346,0.000245,2]
[358725868,1745403076299,-160.0,0.000245,3]
[358725869,1745403076309,-160.0,0.000245,3]
[358725870,1745403076318,-160.0,0.000245,3]
[358725871,1745403076328,-160.0,0.000245,3]
[358725872,1745403076338,-839.95942076,0.000245,3]
[358725873,1745403076348,-420.82143104,0.000245,3]
[358725874,1745403076357,-509.72,0.00024585,2]
[358725875,1745403076367,-835.53,0.00024585,2]
[358725876,1745403076378,-2593.26,0.00024585,2]
[358725877,1745403076388,-8207.28,0.00024585,2]
[358725878,1745403076399,-10366.63,0.00024585,2]
[358725879,1745403076409,-3031.11686034,0.00024585,2]
[358725880,1745403076527,-1032.6131231,0.00024585,2]
[358725881,1745403076539,-170.13001656,0.00024585,2]
[358725882,1745403076549,-751.13,0.00024585,2]
[358725883,1745403076558,-500.0,0.00024585,2]
[358725884,1745403076568,-745.29,0.00024585,2]
[358725885,1745403076578,-565.1,0.00024588,2]
[358725886,1745403076587,-1088.04,0.00024588,2]
[358725887,1745403076596,-1553.74,0.00024588,2]
[358725888,1745403076605,-612.09,0.00024588,2]
[358725889,1745403076614,-562.58,0.00024588,2]
[358725890,1745403076624,-1393.65,0.00024588,2]
[358725891,1745403076633,-500.0,0.00024588,2]
[358725892,1745403076642,-783.91,0.00024588,2]
[358725893,1745403076652,-598.03,0.00024588,2]
[358725894,1745403076661,-537.24,0.00024588,2]
[358725895,1745403076670,-822.07,0.00024588,2]
[358725896,1745403076679,-524.38,0.00024588,2]
[358725897,1745403076689,-500.0,0.00024588,2]
[358725898,1745403076697,-3841.56,0.00024588,2]
[358725899,1745403076707,-500.0,0.00024588,2]
[358725900,1745403076716,-500.0,0.00024589,2]
[358725901,1745403076726,-656.41,0.00024589,2]
[358725902,1745403076737,-734.03,0.00024589,2]
[358725903,1745403076746,-682.6,0.00024589,2]
[358725904,1745403076755,-727.39,0.00024589,2]
[358725905,1745403076764,-686.67,0.00024589,2]
[358725906,1745403076774,-759.45,0.00024589,2]
[358725907,1745403076783,-797.43,0.00024589,2]
[358725908,1745403076793,-593.54,0.00024589,2]
[358725909,1745403076802,-624.72,0.00024589,2]
[358725910,1745403076813,-3144.14,0.00024589,2]
[358725911,1745403076823,-2273.01,0.00024589,2]
[358725912,1745403076832,-500.0,0.00024589,2]
[358725913,1745403076842,-613.49,0.00024589,2]
[358725914,1745403076851,-874.61,0.00024589,2]
[358725915,1745403076861,-500.0,0.00024589,2]
[358725916,1745403076871,-500.0,0.00024589,2]
[358725917,1745403076881,-656.52,0.00024589,2]
[358725918,1745403076890,-500.0,0.00024589,2]
[358725919,1745403076899,-500.0,0.00024589,2]
[358725920,1745403076909,-526.63,0.00024589,2]
[358725921,1745403076919,-1958.53,0.00024589,2]
[358725922,1745403076929,-628.59,0.00024589,2]
[358725923,1745403076939,-626.92,0.00024589,2]
[358725924,1745403076948,-500.0,0.00024589,2]
[358725925,1745403076958,-500.0,0.00024589,2]
[358725926,1745403076968,-151.0,0.0002459,7]
[358725927,1745403076977,-151.0,0.00024622,7]
[358725928,1745403076987,-151.0,0.00024622,7]
[358725929,1745403076996,-481.545953,0.00024622,2]
[358725930,1745403077005,-481.545953,0.00024622,2]
[358725931,1745403077015,-500.0,0.00024629,2]
[358725932,1745403077024,-153.0,0.0002463,2]
[358725933,1745403077033,-153.0,0.0002463,2]
[358725934,1745403077043,-153.0,0.0002463,2]
[358725935,1745403077054,-153.0,0.0002463,2]
[358725936,1745403077064,-153.0,0.0002463,2]
[358725937,1745403077073,-153.0,0.0002463,2]
[358725938,1745403077084,-153.0,0.0002463,2]
[358725939,1745403077093,-153.0,0.0002463,2]
[358725940,1745403077102,-153.0,0.0002463,2]
[358725941,1745403077111,-153.0,0.0002463,2]
[358725942,1745403077121,-12500.0,0.00024639,3]
[358725943,1745403077131,-12500.0,0.00024648,3]
[358725944,1745403077141,-8396.55,0.00024657,2]
[358725945,1745403077150,-11588.5765882,0.00024657,3]
[358725946,1745403077159,-10568.90859812,0.00024657,3]
[358725947,1745403077170,-151.0,0.00024657,7]
[358725948,1745403077179,-219.140886,0.00024657,7]
[358725949,1745403077193,-219.140886,0.00024657,7]
[358725950,1745403077202,-174.868336,0.00024657,7]
[358725951,1745403077211,-174.868336,0.00024657,7]
[358725952,1745403077221,-3455.956356,0.00024657,7]
[358725953,1745403077231,-3455.956356,0.00024657,7]
[358725954,1745403077240,-12500.0,0.00024657,3]
[358725955,1745403077249,-151.0,0.00024658,7]
[358725956,1745403077259,-151.0,0.00024658,7]
[358725957,1745403077268,-151.0,0.00024658,7]
[358725958,1745403077277,-151.0,0.00024658,7]
[358725959,1745403077286,-151.0,0.00024658,7]
[358725960,1745403077295,-155.284695,0.00024658,7]
[358725961,1745403077305,-500.0,0.00024658,2]
[358725962,1745403077314,-500.0,0.00024658,2]
[358725963,1745403077323,-282.37611121,0.00024658,2]
[358725964,1745403077332,-182.68854,0.00024689,7]
[358725965,1745403077342,-182.68854,0.00024689,7]
[358725966,1745403077351,-2253.75,0.0002469,2]
[358725967,1745403077360,-517.89,0.0002469,2]
[358725968,1745403077369,-500.0,0.0002469,2]
[358725969,1745403077379,-2458.84,0.0002469,2]
[358725970,1745403077388,-4774.56,0.0002469,2]
[358725971,1745403077397,-5737.28,0.0002469,2]
[358725972,1745403077406,-651.56,0.00024692,2]
[358725973,1745403077415,-566.38,0.00024692,2]
[358725974,1745403077424,-500.0,0.00024692,2]
[358725975,1745403077433,-683.18,0.00024692,2]
[358725976,1745403077443,-500.0,0.0002475,30]
[358725977,1745403077452,-500.0,0.0002475,30]
[358725978,1745403077461,-500.0,0.0002475,30]
[358725979,1745403077471,-500.0,0.0002475,30]
[358725980,1745403077480,-500.0,0.0002475,30]
[358725981,1745403077491,-500.0,0.0002475,30]
[358725982,1745403077501,-500.0,0.0002475,30]
[358725983,1745403077510,-500.0,0.0002475,30]
[358725984,1745403077519,-500.0,0.0002475,30]
[358725985,1745403077529,-500.0,0.0002475,30]
[358725986,1745403077538,-500.0,0.0002475,30]
[358725987,1745403077547,-500.0,0.0002475,30]
[358725988,1745403077556,-500.0,0.0002475,30]